Cogmind - Beta 11 X8 @@@ ROGUE MODE // 2021.12.06 @ 11:59:42 Player: ZEROAFFEX Result: Destroyed by G-34 Mercenary with Small Laser Performance ------------- Evolutions (1) 500 Regions Visited (4) 800 Robots Destroyed (73) 365 Value Destroyed (1396) 1396 Prototype IDs (2) 40 Alien Tech Used (0) 0 Bonus (58) 58 TOTAL SCORE: 3159 Bonus ------- High Alert Combat Kills 19 Follower Combat Kills 39 Cogmind --------- Core Integrity 0/400 Matter 280/500 Energy 6/100 System Corruption 0% Temperature Cool (6) Movement Treading (225) Ox1 Location -9/Mines Parts ------- > --- POWER (1) -------- (None) > --- PROPULSION (2) --- Advanced Treads Advanced Treads > --- UTILITY (2) ------ High-capacity Storage Unit High-capacity Matter Pod > --- WEAPON (4) ------- Improved EM Shotgun Improved EM Shotgun > --- INVENTORY (20) --- Light Treads Light Treads Advanced Treads Machine Analyzer Improved Terrain Scanner Medium Armor Plating Medium Armor Plating Recalibrator Thief Drone Bay (3/3) Spread Laser Light Assault Rifle Peak State ------------ > --- POWER ------------ Reinforced Ion Engine > --- PROPULSION ------- Advanced Treads Wheel > --- UTILITY ---------- Improved Heat Sink High-capacity Storage Unit > --- WEAPON ----------- Beam Rifle Spread Laser Makeshift Shrapnel Gun Mining Laser > --- INVENTORY -------- Light Nuclear Core Light Treads Light Treads Advanced Treads Advanced Treads Advanced Treads Wheel Wheel High-capacity Matter Pod Machine Analyzer Improved Terrain Scanner Medium Armor Plating Medium Armor Plating Recalibrator Thief Drone Bay Improved EM Shotgun Improved EM Shotgun Beam Rifle Particle Gun Mini Grenade Launcher [Rating: 24] Favorites ----------- Power Ion Engine Engine Ion Engine Power Core Light Nuclear Core Propulsion Light Treads Treads Light Treads Wheel Wheel Utility Improved Heat Sink Device Improved Heat Sink Storage High-capacity Storage Unit Weapon Assault Rifle Energy Gun Particle Gun Ballistic Gun Assault Rifle Launcher Mini Grenade Launcher Special Weapon Mining Laser Build | -11 -10 -10 -9 -9 ------- Run | Scr Mat Min Mat Min Slots Evolved 2 | . . . 2 . Power . | . . . . . Propulsion . | . . . . . Utility . | . . . . . Weapon 2 | . . . 2 . Parts Attached 75 | 8 13 7 32 15 Power 10 | 1 3 1 4 1 Engine 9 | 1 3 1 4 . Core 1 | . . . . 1 Reactor . | . . . . . Propulsion 25 | 4 2 1 12 6 Treads 13 | . 1 1 7 4 Leg . | . . . . . Wheel 12 | 4 1 . 5 2 Hover . | . . . . . Flight . | . . . . . Utility 10 | 1 5 1 2 1 Device 4 | . 2 1 1 . Storage 6 | 1 3 . 1 1 Processor . | . . . . . Hackware . | . . . . . Protection . | . . . . . Artifact . | . . . . . Weapon 30 | 2 3 4 14 7 Energy Gun 15 | . 1 2 8 4 Energy Cannon . | . . . . . Ballistic Gun 9 | 2 1 1 3 2 Ballistic Cannon . | . . . . . Launcher 1 | . . . . 1 Special Weapon 5 | . 1 1 3 . Impact Weapon . | . . . . . Slashing Weapon . | . . . . . Piercing Weapon . | . . . . . Special Melee Weapon . | . . . . . Unidentified Prototypes 1 | . . . 1 . Parts Lost 19 | . . 2 4 13 Power 2 | . . . . 2 Propulsion 6 | . . 1 1 4 Utility 1 | . . . . 1 Weapon 10 | . . 1 3 6 Highest Loss Streak 12 | . . 1 1 12 Average Slot Usage (%) 98 | . 96 99 99 94 Engine 12 | . 14 14 10 10 Treads 17 | . 8 26 15 10 Wheel 7 | . 19 1 6 11 Device 11 | . 11 14 11 9 Storage 12 | . 14 14 11 12 Energy Gun 13 | . 1 9 20 24 Ballistic Gun 20 | . 24 17 21 10 Special Weapon 1 | . 1 1 1 5 Naked Turns . | . . . . . Heaviest Build 62 | 14 50 51 62 62 Greatest Support 44 | 32 20 40 40 44 Greatest Overweight (x) 6 | 3 4 4 6 6 Average Overweight (x) 2 | . 1 1 3 4 Largest Inventory Capacity 20 | 8 20 20 20 20 Average Capacity 18 | 7 13 20 20 20 Most Carried 20 | 7 12 18 20 20 Average Carried 15 | 3 9 14 18 19 Final Capacity 20 | 8 20 20 20 20 Final Carried 19 | 7 12 18 19 11 Class Distribution -------------------- 48% | Mutant 20% | Scavenger-Gunner 19% | Gunner 11% | Scavenger-Mutant Dominant Class ---------------- Mutant | -10/Materials Mutant | -10/Mines Gunner | -9/Materials Scavenger-Mutant | -9/Mines Resources | -11 -10 -10 -9 -9 ----------- Run | Scr Mat Min Mat Min Matter Collected 1558 | 334 285 153 786 . Remotely . | . . . . . Salvage Created 2015 | 136 490 227 953 209 Parts 130 | 10 31 13 66 10 Haulers Intercepted 3 | . 1 . 2 . Recyclers Shooed 1 | 1 . . . . Parts Field Recycled . | . . . . . Retrieved Matter . | . . . . . Parts Self-Destructed . | . . . . . Prevented . | . . . . . Kills | -11 -10 -10 -9 -9 ------- Run | Scr Mat Min Mat Min Combat Hostiles Destroyed 53 | . 12 9 26 6 Guns 53 | . 12 9 26 6 Classes Destroyed 13 | 2 4 1 5 1 Worker 2 | . . . 1 1 Builder 4 | . 1 . 3 . Tunneler 3 | 3 . . . . Hauler 3 | . 1 . 2 . Recycler 3 | 1 . . . 2 Mechanic 1 | . . . 1 . Operator 2 | . . . 2 . Watcher 4 | . . . 4 . Swarmer 27 | . 3 4 16 4 Grunt 17 | . 9 4 4 . Sentry 6 | . . . 6 . Demolisher 1 | . . . . 1 Assembled 2 | . . 1 . 1 Best Kill Streak 9 | 4 5 3 9 5 Combat Bots Only 6 | . 4 3 6 4 Max Kills in Single Turn 3 | 1 1 2 3 3 Gunslinging 2 | . . 1 2 2 Exploded . | . . . . . Melee . | . . . . . Uniques/NPCs Destroyed . | . . . . . Combat | -11 -10 -10 -9 -9 -------- Run | Scr Mat Min Mat Min Damage Taken 3041 | . 376 347 1002 1316 Core 542 | . 76 62 158 246 Absorbed by Shields . | . . . . . Core Remaining (%) 72 | 100 . 44 . . Volleys Fired 135 | 9 31 24 61 10 Largest 4 | 2 2 2 4 4 Hottest 206 | 40 100 100 206 201 Shots Fired 366 | 18 61 43 226 18 Gun 350 | 18 60 39 221 12 Cannon . | . . . . . Launcher 6 | . . . . 6 Special 10 | . 1 4 5 . Kinetic 218 | 18 54 27 117 2 Thermal 121 | . 1 5 109 6 Explosive 6 | . . . . 6 Electromagnetic 21 | . 6 11 . 4 Robot Hit Streak 18 | 10 12 12 18 8 Robot Miss Streak 7 | 1 3 3 7 3 Penetration Max . | . . . . . Secondary Targets 12 | . 1 2 7 2 Max Gunslinging Chain 2 | . 1 1 2 2 Shots Hit Robots 211 | 13 42 24 116 16 Core Hits 142 | 5 22 12 84 19 Critical Kills 2 | . 2 . . . Critical Parts Destroyed . | . . . . . Critical Strikes 10 | . 2 1 6 1 Burn 7 | . . . 6 1 Destroy 2 | . 2 . . . Corrupt 1 | . . 1 . . Melee Attacks . | . . . . . Impact . | . . . . . Slashing . | . . . . . Piercing . | . . . . . Sneak Attacks . | . . . . . Combat Hostiles . | . . . . . Follow-up Attacks . | . . . . . Damage Inflicted 3145 | 165 602 331 1668 379 Guns 2823 | 165 518 331 1668 141 Cannons . | . . . . . Explosions 322 | . 84 . . 238 Melee . | . . . . . Ramming . | . . . . . Kinetic 1412 | 165 439 207 594 7 Thermal 1249 | . 84 17 1074 74 Explosive 238 | . . . . 238 Electromagnetic 246 | . 79 107 . 60 Impact . | . . . . . Slashing . | . . . . . Piercing . | . . . . . Highest Corruption . | . . . . . Average Corruption . | . . . . . Corruption Purged . | . . . . . Overload Shots . | . . . . . Overflow Damage . | . . . . . Projectiles . | . . . . . Explosions . | . . . . . Melee . | . . . . . Knockbacks . | . . . . . Impact . | . . . . . Kinetic . | . . . . . Secondary . | . . . . . Self-Inflicted Damage 51 | . 37 . . 14 Shots 2 | . 1 . . 1 Rammed . | . . . . . Targets Rammed . | . . . . . Kicked . | . . . . . Crushed . | . . . . . Highest Temperature 294 | . 4 . 294 171 Average Temperature 75 | . 2 . 79 55 Received Heat Transfer 664 | . 156 102 249 157 Siege Activations . | . . . . . Robots Corrupted . | . . . . . Combat Hostiles . | . . . . . Parts Fried . | . . . . . Impact Corruptions . | . . . . . Robots Melted . | . . . . . Combat Hostiles . | . . . . . Parts Melted 8 | . . 3 5 . Heat Transferred 3058 | . 150 37 2651 220 Parts Sabotaged . | . . . . . Parts Stolen . | . . . . . Parts Stripped . | . . . . . Power Chain Reactions 1 | . 1 . . . Missiles Intercepted . | . . . . . Alert | -11 -10 -10 -9 -9 ------- Run | Scr Mat Min Mat Min Peak Influence 484 | 20 302 207 484 248 Initial 163 | . 13 82 7 163 Average 135 | 5 151 62 189 199 Maximum Alert Level 2 | . 1 1 2 1 Low Security (%) 73 | 100 67 85 65 52 Level 1 19 | . 32 14 17 47 Level 2 6 | . . . 16 . Level 3 . | . . . . . Level 4 . | . . . . . Level 5 . | . . . . . High Security . | . . . . . Max Security . | . . . . . Squads Dispatched 7 | . 3 . 4 . Investigation 2 | . 2 . . . Extermination . | . . . . . Reinforcement 3 | . 1 . 2 . Assault 2 | . . . 2 . Garrison . | . . . . . Intercept . | . . . . . Construction Impeded . | . . . . . Haulers Reinforced . | . . . . . Active Scanning Responses . | . . . . . Cargo Convoy Interrupts . | . . . . . Stealth | -11 -10 -10 -9 -9 --------- Run | Scr Mat Min Mat Min Distress Signals 6 | . 3 . 3 . Communications Jammed . | . . . . . Distress Signals . | . . . . . Times Spotted 100 | . 22 11 52 15 Peak Tracking Total 10 | . 4 3 10 8 Tactical Retreats 6 | . 1 . 4 1 Traps | -11 -10 -10 -9 -9 ------- Run | Scr Mat Min Mat Min Traps Triggered . | . . . . . Indirectly . | . . . . . Trap Hack Attempts . | . . . . . Triggered . | . . . . . Disarmed . | . . . . . Reprogrammed . | . . . . . Reused . | . . . . . Traps Extracted . | . . . . . Installed 4 | . . 2 2 . Triggered . | . . . . . Machines | -11 -10 -10 -9 -9 ---------- Run | Scr Mat Min Mat Min Machines Disabled 1 | . . 1 . . Max in Single Turn 1 | . . 1 . . Machines Sabotaged . | . . . . . Garrisons Compromised . | . . . . . Overloaded Fab Kills . | . . . . . Hacking | -11 -10 -10 -9 -9 --------- Run | Scr Mat Min Mat Min Machines Accessed 14 | . 5 2 7 . Terminals 7 | . 3 1 3 . Fabricators . | . . . . . Repair Stations 3 | . 1 . 2 . Recycling Units 1 | . 1 . . . Scanalyzers 2 | . . . 2 . Garrison Access . | . . . . . Total Hacks 40 | . 14 6 20 . Successful 26 | . 10 4 12 . Failed 14 | . 4 2 8 . Catastrophic . | . . . . . Database Lockouts . | . . . . . Manual 19 | . 8 3 8 . Terminals 22 | . 8 5 9 . Fabricators . | . . . . . Repair Stations 11 | . 4 . 7 . Recycling Units 2 | . 2 . . . Scanalyzers 4 | . . . 4 . Garrison Access . | . . . . . Terminal Hacks 8 | . 3 3 2 . Robot Analysis 2 | . 1 . 1 . Open Door 1 | . . 1 . . Unreport Threat 1 | . . 1 . . Locate Traps 3 | . 2 . 1 . Dispatch Records 1 | . . 1 . . Fabricator Hacks . | . . . . . Repair Station Hacks 9 | . 3 . 6 . Scan Component 5 | . 2 . 3 . Repair 4 | . 1 . 3 . Recycling Unit Hacks . | . . . . . Scanalyzer 3 | . . . 3 . Insert Component 2 | . . . 2 . Analyze 1 | . . . 1 . Garrison Access Hacks . | . . . . . Unauthorized Hacks 6 | . 4 1 1 . Terminals 5 | . 3 1 1 . Track 5 | . 3 1 1 . Fabricators . | . . . . . Repair Stations . | . . . . . Recycling Units 1 | . 1 . . . Tunnel 1 | . 1 . . . Scanalyzers . | . . . . . Garrison Access . | . . . . . Data Cores Recovered . | . . . . . Used . | . . . . . Hacking Detections 10 | . 4 . 6 . Full Trace Events 1 | . 1 . . . Feedback Events . | . . . . . Feedback Blocked . | . . . . . Robot Schematics Acquired . | . . . . . Robots Built . | . . . . . Authchips . | . . . . . Time . | . . . . . Total Robot Build Rating . | . . . . . Part Schematics Acquired 1 | . . . 1 . Parts Built . | . . . . . Authchips . | . . . . . Time . | . . . . . Total Part Build Rating . | . . . . . Parts Repaired 4 | . 1 . 3 . Time 116 | . 38 . 78 . Parts Recycled . | . . . . . Recycled Matter . | . . . . . Retrieved Matter . | . . . . . Retrieved Components . | . . . . . Parts Scanalyzed 1 | . . . 1 . Part Schematics Acquired 1 | . . . 1 . Parts Damaged . | . . . . . Bothacking | -11 -10 -10 -9 -9 ------------ Run | Scr Mat Min Mat Min Used RIF Installer . | . . . . . Robots Hacked . | . . . . . Non-combat . | . . . . . Combat . | . . . . . Robot Hacks Applied . | . . . . . Relay Couplers Released . | . . . . . Fabnet Peak Effective % . | . . . . . Robots Rewired . | . . . . . Allies Hacked . | . . . . . Hacks Repelled . | . . . . . Allies | -11 -10 -10 -9 -9 -------- Run | Scr Mat Min Mat Min Total Allies 3 | . . 3 . . Largest Group 3 | . . 3 . . Highest-Rated Group 40 | . . 40 . . Highest-Rated Ally 16 | . . 16 . . Total Orders . | . . . . . Ally Attacks 18 | . . 18 . . Total Damage 199 | . . 199 . . Kills 3 | . . 3 . . Allies Corrupted 1 | . . 1 . . Allies Melted . | . . . . . Intel | -11 -10 -10 -9 -9 ------- Run | Scr Mat Min Mat Min Robot Analysis Total 2 | . 1 . 1 . Derelict Logs Recovered 3 | . . 2 . 1 Drone Launches . | . . . . . Drone Recoveries . | . . . . . Exploration | -11 -10 -10 -9 -9 ------------- Run | Scr Mat Min Mat Min Turns Passed 4162 | 110 665 1438 1729 220 Spaces Moved 1970 | 70 469 602 720 109 Core 6 | 6 . . . . Treads 704 | . . 489 214 1 Legs . | . . . . . Wheels 1260 | 64 469 113 506 108 Hover . | . . . . . Flight . | . . . . . Fastest Speed 50 | 50 80 140 125 110 Average Speed 169 | 94 101 221 179 153 Slowest Speed 240 | 200 140 240 240 225 Overloaded Moves . | . . . . . Propulsion Burnouts . | . . . . . Robots Hopped . | . . . . . Cave-ins Triggered . | . . . . . Exploration Rate (%) 54 | 4 73 94 68 34 Regions Visited 4 Branch Regions 2 Pre-discovered Areas 3 | . 1 1 . 1 Known Exits Taken . | . . . . . Unknown Exits Taken 4 | 1 1 1 1 . Scrap Searched 1 | . . 1 . . Spaces Dug 6 | . 1 . 5 . Terrain Destroyed 25 | . 3 . 5 17 Melee . | . . . . . Projectile 6 | . 1 . 5 . AOE 19 | . 2 . . 17 Terrain Rammed . | . . . . . Walls Destroyed . | . . . . . Machines Disabled . | . . . . . Actions | -11 -10 -10 -9 -9 --------- Run | Scr Mat Min Mat Min Total 2499 | 91 596 656 1011 145 Wait 250 | . 73 16 153 8 Move 1966 | 69 468 601 719 109 Hop . | . . . . . Pick Up 36 | 5 4 6 19 2 Fast Attach 13 | 6 2 . 4 1 Attach 18 | . . 2 6 10 Detach 1 | . . . 1 . Swap 44 | 2 11 5 22 4 Drop 32 | . 7 . 24 1 Fire 135 | 9 31 24 61 10 Melee . | . . . . . Ram . | . . . . . Kick . | . . . . . Crush . | . . . . . Escape Stasis . | . . . . . Rewire . | . . . . . Trap 4 | . . 2 2 . Miscellaneous . | . . . . . Route ------- -11/Scrapyard -10/Materials (discovered 4 exits: *Mat x3 / *Min) -10/Mines (discovered 2 exits: *Mat x2) -9/Materials (discovered 3 exits: [*Mat x2] / [*Min]) -9/Mines (discovered 1 exit: [*Mat]) History --------- Turn | Location | Event 33 | -11/Scrapyard | Discovered new exit (range 16) 111 | -11/Scrapyard | Entered Materials 230 | -10/Materials | Discovered new exit (range 15) 291 | -10/Materials | Discovered new exit (range 12) 456 | -10/Materials | Discovered new exit (range 15) 511 | -10/Materials | Discovered new exit (range 16) 681 | -10/Materials | Repaired Imp. Heat Sink 776 | -10/Materials | Entered Mines 890 | -10/Mines | Found a hidden stash of uninstalled traps 975 | -10/Mines | Discovered new exit (range 5) 1009 | -10/Mines | Build established: Mutant 1013 | -10/Mines | Assisted by bots powering up and referring to "LRC-V3" 1069 | -10/Mines | Learned Materials emergency access door positions 1162 | -10/Mines | Discovered new exit (range 8) 1194 | -10/Mines | Found the Drone Emporium 1205 | -10/Mines | Found Prototype Device 1771 | -10/Mines | Core integrity fell below 50% 1868 | -10/Mines | Excavation squad dispatched 1868 | -10/Mines | A large section of the Mines collapsed 2214 | -10/Mines | Entered Materials 2214 | -9/Materials | Evolved 2 slots: Weapon x2 2515 | -9/Materials | Build established: Gunner 2522 | -9/Materials | Repaired Ion Engine 2550 | -9/Materials | Repaired Lgt. Treads 2817 | -9/Materials | Repaired Lgt. Treads 2972 | -9/Materials | Discovered new exit (range 4) 2997 | -9/Materials | Build established: Scavenger-Gunner 3390 | -9/Materials | Discovered new exit (range 15) 3408 | -9/Materials | Identified Thief Drone Bay 3435 | -9/Materials | Build established: Gunner 3493 | -9/Materials | Discovered new exit (range 14) 3814 | -9/Materials | First assault squad dispatched 3849 | -9/Materials | Build established: Scavenger-Gunner 3943 | -9/Materials | Entered Mines 3986 | -9/Mines | A weapon hastily lodged in a ceiling crevice suddenly fell to the ground 4073 | -9/Mines | Learned location of Storage (-8) 4092 | -9/Mines | Assembled infested the area 4097 | -9/Mines | Assisted by a Guerilla fighting off Assembled 4134 | -9/Mines | Core integrity fell below 50% 4137 | -9/Mines | Discovered new exit (range 9) 4148 | -9/Mines | Core integrity fell below 20% 4163 | -9/Mines | Destroyed by G-34 Mercenary with Small Laser Last Messages --------------- 04151_ U-05 Engineer lays Concrete. 04152_ The unstable cave ceiling collapses. 04153_ U-05 Engineer builds a Wall. 04153_ K-01 Serf collects debris. 04153_ D-53 Grenadier destroyed. 04153_ Particle Gun destroyed. 04154_ The unstable cave ceiling collapses. 04154_ D-53 Grenadier destroyed. 04155_ The unstable cave ceiling collapses. 04156_ Lgt. Nuclear Core destroyed. 04156_ as-93310 destroyed. 04156_ U-05 Engineer lays Concrete. 04157_ K-01 Serf collects debris. 04157_ U-05 Engineer builds a Wall. 04159_ The unstable cave ceiling collapses. 04159_ Adv. Treads destroyed. 04160_ Wheel destroyed. 04161_ The unstable cave ceiling collapses. 04161_ K-01 Serf collects debris. 04161_ U-05 Engineer lays Concrete. Map ----- +----------------------------------------------------+ | ##???????????????????????????????????????????????? | | ###???#?????????????????????????????????????????? | | ### #?????????????????????????????????????????? | | #?????????????????????????????????????????? | | ####?????????????????????????????????????????? | | ##????????????????????????????????????????????? | | ##?????????????????????????????????????????????? | | ##?????????????????????????????????????????????? | | ##????????????????????????????????????????????? | | #????????????????????????????????????????????? | | #?????????????????????????????????????? ?????? | | ###?????????????????????????????????????? ?????? | | #???????????????????????????????????????? ?????? | | #??????????????????????#####????????????? ?????? | | #?????????????????????? #?????????????$?????? | | #?????????????????????? g #????????????? #????? | | #??????????????????#??# *< #???###??????? #????? | | ##?????????????????# ? %= #???# ???#### #????? | | ##????????????????# ?# k #???# #??## ##???? | | ##?????????????### ## ????# #??# #???? | | #????????????? ##???# #??# #???? | | #????????????? ## # ##?## #### """ #???? | | # ##????????????? # # g# ### """ #???? | | ## #?????????????? # ## ## """ ##??? | | ?# ######## #????# ## # ### = ##?? | | ?# #????# # @ % #?## !% #?? | | ## #########?????# t % #??### ## #? | | ###???????????# # ###????####??? # | | ## #???????#### ## ????????????# | | ?# #??????## ##*# #?? """??????????? | | ?### #??????# u% ##??? ""???????????? | | ???# ######## % ###?????????????????? | | ???# ####???????????????????? | | ???######## ##%% # #?????????????????????? | | ??????????# ## % # ###?????????????????????? | | ??????????# ## % ##????????????????????????? | | ??????????# ### #?????????????????????????? | | ??????????# ?## #?????????????????????????? | | ??????????###??# #?????????????????????????? | | ???????????????# #?????????????????????????? | | ???????????????# #????????????????????????? | | ???????????????## ???????????????????????? | | ????????????????### ??????????????????????? | | ???????????????????# #?????????????????????? | | ????????????????????# #?????????????????????? | | ?????????????????????# ?????????????????????? | | ??????????????????????# ??????????????????????? | | ??????????????????????? ????????????????????????? | | ?????????????????????????????????????????????????? | | ?????????????????????????????????????????????????? | +----------------------------------------------------+ Best States ------------- Heat Dissipation 42 Energy Generation 12 Energy Capacity 265 Matter Stores 310 Matter Capacity 500 Sight Range 16 Terrain Scan Density 10 Evasion (%) 44 Recoil Reduction 2 Item Schematics ----------------- Machine Analyzer | -9/Materials | Scanalyzed Robot Schematics ------------------ None Fabricated ------------ Nothing Alien Tech Used ----------------- None Achievements -------------- None Challenges ------------ None Game ------ Seed AntigravUltimateCharge Manual? 0 Play Time 00:53:26 Cumulative 112.1 hours Start 2021.12.05 @ 09:34:15 End 2021.12.06 @ 11:59:42 Sessions 3 Manual Loads 0 Difficulty Rogue Special Mode None Game No. 74 Rogue 70 Adventurer 3 Explorer 1 Win Type - Total 1 Types 1/0/0/0/0/0/0/0/0 Lore% 50 Gallery% 44 Achievement% 41 Wizard Run 0 Options --------- ASCII 0 Keyboard 0 Movement Mouse Keybinds 1 Fullscreen 1 Font 18/TerminusBold Map View 76x50 Tactical HUD 1 Map Filters NONE Filters NONE Steam 1 RUN: e74099ca-99ba-478d-9db5-b874f126a8de